bitfinex/quotes_BTCUSD_20250211
["timestamp","ask_amount","ask_price","bid_price","bid_amount"]
[1739288410287,0.154551,97055.0,97054.0,0.28459999]
[1739288411737,0.001,97056.0,97054.0,0.28459999]
[1739288411963,0.15555,97056.0,97054.0,0.28359999]
[1739288412507,0.001,97056.0,97054.0,0.28359999]
[1739288412643,0.154551,97055.0,97054.0,0.28359999]
[1739288412846,0.154551,97055.0,97054.0,0.28559999]
[1739288413278,0.155551,97055.0,97054.0,0.28359999]
[1739288413531,0.155551,97055.0,97054.0,0.28382385]
[1739288413732,0.155551,97055.0,97054.0,0.28482385]
[1739288414794,0.001,97055.0,97054.0,0.28482385]
[1739288415004,0.001,97055.0,97054.0,0.43937685]
[1739288415182,0.001,97055.0,97054.0,0.56477685]
[1739288415386,0.001,97055.0,97054.0,0.40922385]
[1739288415669,0.001,97055.0,97054.0,0.56377685]
[1739288415983,0.001,97055.0,97054.0,0.40922385]
[1739288416334,0.001,97055.0,97054.0,0.56577685]
[1739288416538,0.001,97055.0,97054.0,0.41122385]
[1739288417909,0.001,97055.0,97054.0,0.28582385]
[1739288418123,0.155551,97055.0,97054.0,0.28582385]
[1739288418473,0.001,97055.0,97054.0,0.28582385]
[1739288418680,0.155551,97055.0,97054.0,0.28582385]
[1739288420048,0.155551,97055.0,97054.0,0.00222386]
[1739288420655,0.305551,97055.0,97054.0,0.00222386]
[1739288420854,5.53325465,97055.0,97054.0,0.00222386]
[1739288421124,5.58125465,97055.0,97054.0,0.00222386]
[1739288421479,5.60199394,97055.0,97054.0,0.00222386]
[1739288422083,0.304562,97048.0,97047.0,0.00022386]
[1739288422310,5.58126565,97048.0,97047.0,0.00022386]
[1739288424228,5.58626565,97048.0,97047.0,0.00022386]
[1739288425250,5.61500573,97048.0,97047.0,0.00022386]
[1739288425437,5.62800573,97048.0,97047.0,0.00022386]
[1739288425647,0.0762,97046.0,97026.0,0.03915007]
[1739288425888,0.380796,97027.0,97026.0,0.03915007]
[1739288426218,0.30462,97012.0,97011.0,0.0002]
[1739288427647,0.30472952,97012.0,97011.0,0.0002]
[1739288428459,0.30572952,97012.0,97011.0,0.0002]
[1739288429599,0.30672952,97012.0,97011.0,0.0002]
[1739288430139,0.30572952,97012.0,97011.0,0.0002]
[1739288431563,0.30472952,97012.0,97011.0,0.0002]
[1739288432182,0.30572952,97012.0,97011.0,0.0002]
[1739288432389,5.53933317,97012.0,97011.0,0.0002]
[1739288432891,5.56707325,97012.0,97011.0,0.0002]
[1739288433091,5.59507618,97012.0,97011.0,0.0002]
[1739288434101,5.54033317,97012.0,97011.0,0.0002]
[1739288434706,5.56126163,97012.0,97011.0,0.0002]
[1739288434931,5.56026163,97012.0,97011.0,0.0002]
[1739288435438,5.57326163,97012.0,97011.0,0.0002]
[1739288435780,5.57926163,97012.0,97011.0,0.0002]
[1739288436210,5.27464163,97012.0,97011.0,0.0002]
[1739288436450,0.154648,96994.0,96993.0,0.24054998]
[1739288437450,0.206195,96996.0,96992.0,0.00022386]
[1739288437634,0.15465,96993.0,96992.0,0.00022386]
[1739288439242,0.15565,96993.0,96992.0,0.00022386]
[1739288439490,0.15665,96993.0,96992.0,0.00022386]
[1739288439915,0.002,96993.0,96992.0,0.15487486]
[1739288440105,0.002,96993.0,96992.0,0.28417486]
[1739288440303,0.002,96993.0,96992.0,0.12952386]
[1739288440518,0.002,96993.0,96992.0,0.28417486]
[1739288441403,0.001,96993.0,96992.0,0.28417486]
[1739288441691,0.001,96993.0,96992.0,0.12952386]
[1739288441877,0.206174,97006.0,96992.0,0.28417486]
[1739288442085,0.001,96993.0,96992.0,0.12952386]
[1739288442297,0.002,96993.0,96992.0,0.12952386]
[1739288442513,0.002,96993.0,96992.0,0.28417486]
[1739288442723,0.001,96993.0,96992.0,0.28417486]
[1739288442929,0.154634,97003.0,96992.0,0.12952386]
[1739288443134,0.1434419,97020.0,96994.0,0.154648]
[1739288443773,0.154649,96994.0,96992.0,0.12952386]
[1739288443983,0.003,97006.0,96992.0,0.28417486]
[1739288444188,0.157629,97006.0,96998.0,0.08256914]
[1739288444401,0.003,97006.0,97005.0,0.234431]
[1739288444601,0.003,97006.0,97005.0,0.18230365]
[1739288444820,0.003,97006.0,97000.0,0.0459]
[1739288445251,0.157629,97006.0,97000.0,0.0459]
[1739288445448,0.003,97006.0,97000.0,0.0459]
[1739288446118,0.15763,97006.0,97000.0,0.0459]
[1739288446305,0.206162,97011.0,97000.0,0.0459]
[1739288446536,0.154623,97010.0,97000.0,0.200538]
[1739288446770,0.154625,97009.0,97000.0,0.200538]
[1739288446964,0.154626,97008.0,97000.0,0.0459]
[1739288447190,5.00810952,97012.0,97001.0,0.30868665]
[1739288447419,5.00010952,97012.0,97001.0,0.10250365]
[1739288447798,5.00010952,97012.0,97006.0,0.154629]
[1739288448023,5.00010952,97012.0,97001.0,0.10250365]
[1739288448230,5.00010952,97012.0,97007.0,0.154627]
[1739288448433,5.00010952,97012.0,97000.0,0.0469]
[1739288448434,5.00010952,97012.0,97011.0,0.154621]
[1739288448629,5.00010952,97012.0,97011.0,0.33692465]
[1739288449800,5.00010952,97012.0,97002.0,0.748481]
[1739288449801,5.00010952,97012.0,97002.0,0.5423]
[1739288450213,5.15472952,97012.0,97002.0,0.696935]
[1739288450394,5.00010952,97012.0,97002.0,0.5423]
[1739288450540,5.00210952,97012.0,97003.0,0.154633]
[1739288450757,0.154621,97011.0,97002.0,0.5423]
[1739288451367,5.00210952,97012.0,97002.0,0.5423]
[1739288451585,5.15672952,97012.0,97002.0,0.5423]
[1739288451790,5.00010952,97012.0,97002.0,0.5423]
[1739288452241,5.00021622,97012.0,97002.0,0.5423]
[1739288452450,0.154634,97003.0,97002.0,0.5423]
[1739288454025,0.154634,97003.0,97002.0,0.5433]
[1739288454865,0.154634,97003.0,97002.0,0.5423]
[1739288455159,0.154634,97003.0,97002.0,0.5433]
[1739288455335,0.155634,97003.0,97002.0,0.001]
[1739288461022,0.154644,96997.0,96994.0,0.0798]
[1739288461224,0.154645,96996.0,96994.0,0.0798]
[1739288461427,0.154645,96996.0,96992.0,0.00022386]
[1739288461428,0.15465,96993.0,96992.0,0.00022386]
[1739288463716,0.30465,96993.0,96992.0,0.00022386]
[1739288463920,5.59725365,96993.0,96992.0,8.6e-07]
[1739288464120,0.154675,96977.0,96973.0,0.00022386]
[1739288464921,0.304675,96977.0,96973.0,0.00022386]
[1739288465267,0.154672,96980.0,96973.0,0.00022386]
[1739288465472,0.008,96991.0,96976.0,0.00066837]
[1739288465702,0.154671,96980.0,96967.0,0.17815618]
[1739288465985,0.15,96981.0,96968.0,0.0001334]
[1739288466279,0.154671,96980.0,96968.0,0.0001334]
[1739288466517,0.001,96977.0,96968.0,0.0001334]
[1739288466728,0.155675,96977.0,96968.0,0.0001334]
[1739288466886,0.001,96977.0,96968.0,0.0001334]
[1739288467498,0.154677,96976.0,96968.0,0.0001334]
[1739288467752,0.001,96977.0,96968.0,0.0001334]
[1739288467753,0.154687,96970.0,96968.0,0.0001334]
[1739288467925,0.001,96977.0,96968.0,0.0001334]
[1739288468171,0.154688,96969.0,96968.0,0.0001334]
[1739288468583,0.206242,96973.0,96968.0,0.0001334]
[1739288468755,0.154687,96970.0,96968.0,0.0001334]
[1739288468986,0.154688,96969.0,96968.0,0.0001334]
[1739288469575,0.154688,96969.0,96968.0,0.0011334]
[1739288469931,0.154688,96969.0,96968.0,0.0001334]
[1739288470128,0.206247,96971.0,96968.0,0.0001334]
[1739288470334,0.155688,96969.0,96968.0,0.0011334]
[1739288471197,0.001,96969.0,96968.0,0.00042288]
[1739288471421,0.15469,96968.0,96957.0,0.154706]
[1739288471584,0.154689,96969.0,96957.0,0.154707]
[1739288471775,0.154689,96969.0,96958.0,0.154704]
[1739288471958,0.206247,96971.0,96956.0,0.00022386]
[1739288472164,0.206239,96975.0,96956.0,0.00022386]
[1739288472645,0.154699,96963.0,96956.0,0.00022386]
[1739288472787,0.154698,96964.0,96957.0,0.154706]
[1739288473009,0.154698,96963.0,96957.0,0.154706]
[1739288473322,0.154695,96965.0,96957.0,0.154706]
[1739288473465,0.154697,96964.0,96957.0,0.154706]
[1739288473870,0.154694,96966.0,96958.0,0.154705]
[1739288474180,0.154697,96964.0,96956.0,0.36120986]
[1739288474390,0.206251,96969.0,96956.0,0.15493086]
[1739288474957,0.154697,96964.0,96956.0,0.15493086]
[1739288475709,0.206255,96967.0,96956.0,0.00022386]
[1739288475908,0.154695,96965.0,96957.0,0.154706]
[1739288476224,0.20636189,96980.0,96958.0,0.10250365]
[1739288476423,0.154692,96967.0,96958.0,0.10250365]
[1739288476625,0.206232,96978.0,96958.0,0.10250365]
[1739288476806,0.14357479,96980.0,96958.0,0.10250365]
[1739288477015,0.154686,96971.0,96961.0,0.1547]
[1739288477254,0.00013289,96980.0,96958.0,0.10250365]
[1739288477460,0.00013289,96980.0,96960.0,0.20627]
[1739288477619,0.20623,96979.0,96961.0,0.10250365]
[1739288477823,0.00013289,96980.0,96963.0,0.0801]
[1739288478044,0.00013289,96980.0,96969.0,0.1424419]
[1739288478383,0.00013289,96980.0,96971.0,0.206247]
[1739288478587,0.00013289,96980.0,96974.0,0.154679]
[1739288478754,0.00013289,96980.0,96975.0,0.10250365]
[1739288479292,0.006,96979.0,96975.0,0.25718165]
[1739288479641,0.00313289,96980.0,96975.0,0.25718165]
[1739288480051,0.00013289,96980.0,96975.0,0.25718165]
[1739288480684,0.00013289,96980.0,96975.0,0.10250365]
[1739288480851,0.00013289,96980.0,96975.0,0.10350365]
[1739288481254,0.00013289,96980.0,96975.0,0.10650365]
[1739288482205,0.00013289,96980.0,96975.0,0.004]
[1739288482593,0.15480389,96980.0,96975.0,0.004]
[1739288483017,0.154674,96978.0,96975.0,0.004]
[1739288483217,0.00013289,96980.0,96975.0,0.004]
[1739288483595,0.154675,96978.0,96975.0,0.004]
[1739288484187,0.00013289,96980.0,96977.0,0.08256914]
[1739288484382,0.00013289,96980.0,96979.0,0.177672]
[1739288484682,0.00013289,96980.0,96979.0,1.05360653]
[1739288484938,0.00013289,96980.0,96979.0,1.05257565]
[1739288485116,0.00013289,96980.0,96979.0,1.10017565]
[1739288485530,0.00013289,96980.0,96979.0,1.09917565]
[1739288485878,0.00013289,96980.0,96979.0,1.2016793]
[1739288486064,0.00013289,96980.0,96979.0,1.22232499]
[1739288486775,0.00113289,96980.0,96979.0,1.22632499]
[1739288486979,0.116116,96998.0,96992.0,0.282351]
[1739288487188,0.116116,96998.0,96992.0,0.38485465]
[1739288488069,0.116116,96998.0,96992.0,0.92715465]
[1739288489156,0.116116,96998.0,96992.0,0.84705465]
[1739288489779,0.116116,96998.0,96992.0,0.69240365]
[1739288489981,0.0011066,96993.0,96992.0,0.5513]
[1739288490590,0.0021066,96993.0,96992.0,0.5533]
[1739288490988,0.0011066,96993.0,96992.0,0.5513]
[1739288491355,0.0011066,96993.0,96992.0,0.5533]
[1739288491470,0.0001066,96993.0,96992.0,0.5443]
[1739288491695,0.0001066,96993.0,96992.0,0.5423]
[1739288491878,0.1547566,96993.0,96992.0,0.5443]
[1739288492130,0.1547566,96993.0,96992.0,0.5513]
[1739288492131,0.1557566,96993.0,96992.0,0.5513]
[1739288492330,0.1557566,96993.0,96992.0,0.5493]
[1739288492646,0.1547566,96993.0,96992.0,0.5423]
[1739288493061,0.1557566,96993.0,96992.0,0.5493]
[1739288494108,0.1557566,96993.0,96992.0,0.009]
[1739288494746,0.15,96995.0,96992.0,0.009]
[1739288494960,0.15465,96993.0,96992.0,0.009]
[1739288496007,0.23175,96993.0,96992.0,0.009]
[1739288496214,0.38175,96993.0,96992.0,0.002]
[1739288496421,0.15,96990.0,96962.0,0.28883414]
[1739288496648,0.0771,96993.0,96964.0,0.00013289]
[1739288496832,0.154674,96979.0,96965.0,0.10250365]
[1739288497104,0.154674,96979.0,96965.0,0.25719765]
[1739288497312,0.154674,96979.0,96966.0,0.154692]
[1739288497484,0.154674,96979.0,96965.0,0.25719665]
[1739288497643,0.206226,96981.0,96965.0,0.10250365]
[1739288497847,0.154673,96979.0,96966.0,0.154693]
[1739288498269,0.154671,96980.0,96965.0,0.10250365]
[1739288498480,0.15,96991.0,96965.0,0.10250365]
[1739288498676,0.15,96991.0,96966.0,0.154693]
[1739288499167,0.15467,96981.0,96966.0,0.154693]
[1739288499382,0.154674,96978.0,96965.0,0.10250365]
[1739288499581,0.154672,96979.0,96965.0,0.10250365]
[1739288499795,0.154669,96982.0,96967.0,0.154691]
[1739288499992,0.15,96991.0,96965.0,0.10250365]
[1739288499993,0.206217,96986.0,96965.0,0.10250365]
[1739288500197,0.154666,96983.0,96968.0,0.154688]
[1739288500551,0.154668,96982.0,96966.0,0.206257]
[1739288500834,0.154668,96982.0,96968.0,0.154689]
[1739288501049,0.001,96979.0,96968.0,0.154689]
[1739288501223,0.001,96979.0,96969.0,0.24594555]
[1739288501764,0.001,96979.0,96971.0,0.154684]
[1739288502573,0.154664,96985.0,96971.0,0.154684]
[1739288502781,0.001,96982.0,96971.0,0.154684]
[1739288503322,0.001,96982.0,96969.0,0.40063255]
[1739288503519,0.154669,96982.0,96969.0,0.10250365]
[1739288503722,0.15467,96981.0,96969.0,0.10250365]
[1739288503956,0.001,96979.0,96971.0,0.004]
[1739288504362,0.206232,96978.0,96971.0,0.004]
[1739288504568,0.154675,96977.0,96971.0,0.004]
[1739288504771,0.001,96979.0,96971.0,0.004]
[1739288505181,0.154675,96978.0,96971.0,0.004]
[1739288505397,0.154678,96976.0,96971.0,0.004]
[1739288505610,0.206232,96978.0,96971.0,0.004]
[1739288505956,0.206232,96978.0,96965.0,0.00022386]
[1739288506172,0.206228,96980.0,96965.0,0.10272751]
[1739288506372,0.154675,96978.0,96969.0,0.004]
[1739288506798,0.154671,96980.0,96969.0,0.004]
[1739288507005,0.154671,96980.0,96965.0,0.10272751]
[1739288507210,0.154672,96979.0,96965.0,0.10672751]
[1739288507410,0.001,96978.0,96965.0,0.10672751]
[1739288507657,0.001,96978.0,96965.0,0.004]
[1739288508451,0.155674,96978.0,96965.0,0.004]
[1739288508658,0.001,96978.0,96965.0,0.004]
[1739288510148,0.001,96978.0,96966.0,0.154691]
[1739288510352,0.154676,96977.0,96965.0,0.004]
[1739288510696,0.154676,96977.0,96964.0,0.00013289]
[1739288510903,0.15,96999.0,96964.0,0.00013289]
[1739288511102,0.154677,96977.0,96965.0,0.003]
[1739288511676,0.154673,96979.0,96964.0,0.15482789]
[1739288512098,0.206223,96983.0,96964.0,0.00313289]
[1739288512099,0.001,96977.0,96964.0,0.00313289]
[1739288512340,0.001,96977.0,96965.0,0.00022386]
[1739288513793,0.154674,96978.0,96965.0,0.00022386]
[1739288513941,0.154674,96978.0,96965.0,0.15491786]
[1739288514148,0.001,96979.0,96965.0,0.00022386]
[1739288514347,0.001,96979.0,96965.0,0.10272751]
[1739288514550,0.1501066,96993.0,96967.0,0.154691]
[1739288514732,0.154669,96982.0,96968.0,0.154689]
[1739288514931,0.001,96977.0,96968.0,0.154689]
[1739288515128,0.001,96977.0,96969.0,0.154688]
[1739288515396,0.001,96977.0,96970.0,0.154686]
[1739288515607,0.0001066,96993.0,96965.0,0.10272751]
[1739288515790,0.15,96991.0,96967.0,0.206253]
[1739288515932,0.15467,96981.0,96967.0,0.15469]
[1739288516131,0.15,96991.0,96965.0,0.10272751]
[1739288516339,0.15,96991.0,96968.0,0.154689]
[1739288516674,0.154669,96981.0,96968.0,0.154689]
[1739288518198,0.155669,96981.0,96968.0,0.158689]
[1739288518401,0.155669,96981.0,96968.0,0.004]
[1739288519448,0.154671,96980.0,96968.0,0.004]
[1739288519673,0.001,96981.0,96968.0,0.004]
[1739288519813,0.001,96981.0,96969.0,0.360939]
[1739288520037,0.001,96981.0,96968.0,0.004]
[1739288520321,0.001,96981.0,96969.0,0.154687]
[1739288520448,0.001,96981.0,96970.0,0.1434419]
[1739288520655,0.001,96981.0,96970.0,0.2981279]
[1739288520863,0.001,96981.0,96968.0,0.36494]
[1739288521258,0.001,96981.0,96968.0,0.158688]
[1739288521485,0.154669,96981.0,96968.0,0.154688]
[1739288521683,0.154671,96980.0,96967.0,0.154691]
[1739288521898,0.154669,96982.0,96968.0,0.154689]
[1739288522101,0.154666,96983.0,96967.0,0.206255]
[1739288522278,0.2063066,96993.0,96965.0,0.10272751]
[1739288522463,0.001,96980.0,96968.0,0.158688]
[1739288522664,0.001,96980.0,96969.0,0.154688]
[1739288522864,0.206202,96992.0,96968.0,0.004]
[1739288523063,0.154669,96981.0,96968.0,0.15469]
[1739288523264,0.154671,96980.0,96967.0,0.154691]
[1739288523560,0.20622,96984.0,96965.0,0.10272751]
[1739288523880,0.154674,96978.0,96965.0,0.10272751]
[1739288524100,0.3609,96980.0,96965.0,0.10272751]
[1739288524520,0.154673,96979.0,96966.0,0.154692]
[1739288524712,0.154672,96980.0,96965.0,0.10272751]
[1739288524894,0.0801,96986.0,96965.0,0.00022386]
[1739288525088,0.206236,96977.0,96967.0,0.004]
[1739288525338,0.206229,96980.0,96967.0,0.004]
[1739288525479,0.206232,96978.0,96967.0,0.004]
[1739288525675,0.154678,96976.0,96967.0,0.004]
[1739288525875,0.1501066,96993.0,96970.0,0.154685]
[1739288526306,0.001,96980.0,96967.0,0.154691]
[1739288526685,0.001,96980.0,96968.0,0.00022386]
[1739288528181,0.001,96980.0,96969.0,0.154688]
[1739288528384,0.001,96980.0,96968.0,0.15491286]
[1739288528798,0.001,96980.0,96968.0,0.00022386]
[1739288529005,0.0001066,96987.0,96978.0,0.0812]
[1739288529206,0.0001066,96987.0,96980.0,0.154669]
[1739288529539,0.0001066,96987.0,96979.0,0.0498]
[1739288529540,0.0001066,96987.0,96981.0,0.10250365]
[1739288529740,0.0001066,96987.0,96986.0,0.154661]
[1739288529954,0.0001066,96987.0,96986.0,0.25716465]
[1739288530361,0.0001066,96987.0,96986.0,0.33836465]
[1739288532051,0.0011066,96987.0,96986.0,0.88066465]
[1739288532478,0.0031066,96987.0,96986.0,0.95746465]
[1739288533526,0.0031066,96987.0,96986.0,1.10746465]
[1739288533903,0.0031066,96987.0,96986.0,1.2099683]
[1739288534773,0.0031066,96987.0,96986.0,1.2199683]
[1739288535396,0.0031066,96987.0,96986.0,1.11746465]
[1739288535984,0.0011066,96987.0,96986.0,1.11346465]
[1739288536374,0.0011066,96987.0,96986.0,1.11746465]
[1739288536923,5.88e-06,96987.0,96986.0,1.11346465]
[1739288537157,0.0001066,96993.0,96992.0,0.327651]
[1739288537286,0.0001066,96993.0,96992.0,0.43015465]
[1739288538670,0.0001066,96993.0,96992.0,0.97245465]
[1739288539079,0.0001066,96993.0,96992.0,1.05575465]
[1739288539281,0.0001066,96993.0,96992.0,1.10125465]
[1739288539484,0.0011066,96993.0,96992.0,1.12854764]
[1739288539823,0.0001066,96993.0,96992.0,1.12154764]
[1739288540046,0.0001066,96993.0,96992.0,1.22405129]
[1739288540212,0.0011066,96993.0,96992.0,1.12854764]
[1739288542532,0.0011066,96993.0,96992.0,0.87224764]
[1739288542733,0.0021066,96993.0,96992.0,0.87924764]
[1739288543183,0.0001066,96993.0,96992.0,0.86524764]
[1739288543395,0.0011066,96993.0,96992.0,0.88024764]
[1739288543979,0.0001066,96993.0,96992.0,0.86524764]
[1739288544391,0.0011066,96993.0,96992.0,0.88024764]
[1739288544934,0.0001066,96993.0,96992.0,0.86524764]
[1739288545304,0.0001066,96993.0,96992.0,0.88024764]
[1739288545305,0.0011066,96993.0,96992.0,0.88024764]
[1739288547541,0.0021066,96993.0,96992.0,0.88624764]
[1739288547967,0.0011066,96993.0,96992.0,0.88024764]
[1739288548366,0.0021066,96993.0,96992.0,0.88624764]
[1739288551342,0.0021066,96993.0,96992.0,1.01175129]
[1739288551948,0.0021066,96993.0,96992.0,0.90924764]
[1739288555289,0.0021066,96993.0,96992.0,0.88624764]
[1739288555496,0.0021066,96993.0,96992.0,0.82045465]
[1739288556547,0.0021066,96993.0,96992.0,0.5633]
[1739288556745,0.0021066,96993.0,96992.0,0.021]
[1739288557185,0.2359566,96993.0,96992.0,0.021]
[1739288557641,0.2349566,96993.0,96992.0,0.006]
[1739288557810,0.2359566,96993.0,96992.0,0.021]
[1739288558015,0.0803066,96993.0,96992.0,0.015]
[1739288558250,0.2349566,96993.0,96992.0,0.015]
[1739288558445,0.2349566,96993.0,96992.0,0.006]
[1739288558786,0.2349566,96993.0,96992.0,0.01]
[1739288558988,0.2339566,96993.0,96992.0,0.004]
[1739288559188,0.2339566,96993.0,96992.0,0.005]
[1739288559405,0.0793066,96993.0,96992.0,0.005]
[1739288559588,0.2339566,96993.0,96992.0,0.005]
[1739288562955,0.0793066,96993.0,96992.0,0.005]
[1739288563361,0.0001066,96993.0,96992.0,0.005]
[1739288567373,0.0001066,96993.0,96992.0,0.159651]
[1739288568211,0.0001066,96993.0,96992.0,0.80548556]
[1739288568424,0.0001066,96993.0,96992.0,0.80445465]
[1739288568650,0.0001066,96993.0,96992.0,0.82745465]
[1739288568889,0.0001066,96993.0,96992.0,0.92187738]
[1739288569345,0.0001066,96993.0,96992.0,0.91787738]
[1739288569566,0.0001066,96993.0,96992.0,1.06687738]
[1739288569782,0.0001066,96993.0,96992.0,1.05445465]
[1739288570000,0.0011066,96993.0,96992.0,1.06545465]
[1739288570212,0.0011066,96993.0,96992.0,1.0866157]
[1739288570433,0.0011066,96993.0,96992.0,1.0906157]
[1739288570871,0.0011066,96993.0,96992.0,1.0866157]
[1739288571289,0.0011066,96993.0,96992.0,1.11273624]
[1739288572140,0.0001066,96993.0,96992.0,1.10173624]
[1739288572611,0.0011066,96993.0,96992.0,1.11673624]
[1739288572820,0.0011066,96993.0,96992.0,1.0906157]
[1739288573266,0.0001066,96993.0,96992.0,1.0756157]
[1739288573952,0.0011066,96993.0,96992.0,1.0806157]
[1739288574404,0.0001066,96993.0,96992.0,1.08592976]
[1739288574986,0.0011066,96993.0,96992.0,1.10092976]
[1739288575190,0.0021066,96993.0,96992.0,1.10592976]
[1739288575470,0.0011066,96993.0,96992.0,1.09092976]
[1739288575678,0.0001066,96993.0,96992.0,1.08592976]
[1739288575806,0.0011066,96993.0,96992.0,1.10092976]
[1739288576420,0.0001066,96993.0,96992.0,1.08592976]
[1739288576816,0.0011066,96993.0,96992.0,1.10092976]
[1739288577536,0.0021066,96993.0,96992.0,1.20843341]
[1739288577861,0.0021066,96993.0,96992.0,1.10592976]
[1739288578100,0.0011066,96993.0,96992.0,1.10092976]
[1739288578510,0.0021066,96993.0,96992.0,1.10592976]
[1739288582717,0.0021066,96993.0,96992.0,1.11592976]
[1739288582930,0.0021066,96993.0,96992.0,1.16462976]
[1739288583199,0.0021066,96993.0,96992.0,1.22627806]
[1739288584468,0.0021066,96993.0,96992.0,1.16462976]
[1739288587663,0.0021066,96993.0,96992.0,0.62232976]
[1739288587868,0.0021066,96993.0,96992.0,1.16462976]
[1739288588292,6e-07,96993.0,96992.0,1.16462976]
[1739288588923,6e-07,96993.0,96992.0,0.62232976]
[1739288589348,3.8,97000.0,96999.0,0.32764]
[1739288589564,3.8,97000.0,96999.0,0.97244365]
[1739288590597,3.80007791,97000.0,96999.0,0.97244365]
[1739288591624,3.68767052,97000.0,96999.0,1.06434365]
[1739288591840,3.66818543,97000.0,96999.0,1.06434365]
[1739288592017,3.65649437,97000.0,96999.0,1.1668473]
[1739288592240,3.65649437,97000.0,96999.0,1.2225473]
[1739288592646,3.59463737,97000.0,96999.0,1.2225473]
[1739288592998,3.59463737,97000.0,96999.0,1.2375473]
[1739288593348,3.55339937,97000.0,96999.0,1.2475473]
[1739288593687,3.49154237,97000.0,96999.0,1.2475473]
[1739288593891,3.45030437,97000.0,96999.0,1.2475473]
[1739288594498,3.45224253,97000.0,96999.0,1.2475473]
[1739288595313,3.45224253,97000.0,96999.0,1.2375473]
[1739288600074,3.45234913,97000.0,96999.0,1.2375473]
[1739288602811,3.45234913,97000.0,96999.0,1.12504365]
[1739288602972,3.45234913,97000.0,96999.0,0.99444365]
[1739288603601,3.45234913,97000.0,96999.0,0.82144365]
[1739288603801,3.53434913,97000.0,96999.0,0.82144365]
[1739288604204,3.53434913,97000.0,96999.0,0.66680365]
[1739288604403,3.53434913,97000.0,96999.0,0.82144365]
[1739288604641,3.53434913,97000.0,96999.0,0.80644365]
[1739288605325,3.53434913,97000.0,96999.0,0.81744365]
[1739288605897,3.53434913,97000.0,96999.0,0.80644365]
[1739288606468,3.53434913,97000.0,96999.0,0.79944365]
[1739288606919,3.53434913,97000.0,96999.0,0.80444365]
[1739288607252,3.53434913,97000.0,96999.0,0.79944365]
[1739288607450,3.53434913,97000.0,96999.0,0.80444365]
[1739288607890,3.53434913,97000.0,96999.0,0.81544365]
[1739288611410,3.53434913,97000.0,96999.0,0.81566751]
[1739288612012,3.58164913,97000.0,96999.0,0.66102751]
[1739288612218,3.58164913,97000.0,96999.0,0.81566751]
[1739288614109,3.58164913,97000.0,96999.0,0.55852386]
[1739288614317,3.73628813,97000.0,96999.0,0.01622386]
[1739288614571,3.73434997,97000.0,96999.0,0.01622386]
[1739288614798,3.57971097,97000.0,96999.0,0.01622386]
[1739288614981,3.57971097,97000.0,96999.0,0.00522386]
[1739288615358,3.57971097,97000.0,96999.0,0.00422386]
[1739288615739,3.57971097,97000.0,96999.0,0.00622386]
[1739288615990,3.57971097,97000.0,96999.0,0.00222386]
[1739288616407,3.73434997,97000.0,96999.0,0.00622386]
[1739288616767,3.57971097,97000.0,96999.0,0.00622386]
[1739288617338,3.73434997,97000.0,96999.0,0.00622386]
[1739288618973,3.73434997,97000.0,96999.0,0.00222386]
[1739288619177,3.73434997,97000.0,96999.0,0.00022386]
[1739288619382,3.73834997,97000.0,96999.0,0.00022386]
[1739288619589,3.73934997,97000.0,96999.0,0.00022386]
[1739288620730,3.79089797,97000.0,96980.0,0.206226]
[1739288620864,0.154658,96988.0,96982.0,0.154666]
[1739288621475,0.154658,96988.0,96979.0,0.360902]
[1739288621675,0.154658,96988.0,96978.0,0.206231]
[1739288621875,0.206209,96989.0,96974.0,0.5423]
[1739288622076,0.154661,96987.0,96982.0,0.154667]
[1739288622914,0.206209,96989.0,96975.0,0.10250365]
[1739288622915,0.206187,96999.0,96975.0,0.10250365]
[1739288623138,0.154658,96988.0,96982.0,0.157666]
[1739288623484,0.206187,96999.0,96982.0,0.005]
[1739288623729,0.154657,96989.0,96983.0,0.154664]
[1739288624329,0.154653,96991.0,96982.0,0.209221]
[1739288624536,0.154653,96991.0,96975.0,0.10250365]
[1739288624537,0.154654,96991.0,96975.0,0.10250365]
[1739288624730,0.154654,96991.0,96984.0,0.154664]
[1739288624911,0.206194,96996.0,96984.0,0.154664]
[1739288625111,0.154655,96990.0,96976.0,0.5423]
[1739288625318,3.72315287,97000.0,96976.0,0.64480365]
[1739288625552,0.154654,96991.0,96983.0,0.154665]
[1739288625734,0.154655,96990.0,96983.0,0.154665]
[1739288626400,0.154654,96991.0,96976.0,0.64480365]
[1739288626574,0.154654,96991.0,96983.0,0.154665]
[1739288626971,0.154654,96991.0,96983.0,0.156665]
[1739288627342,0.154654,96991.0,96983.0,0.154665]
[1739288627891,0.154655,96990.0,96983.0,0.154665]
[1739288628234,0.154654,96991.0,96977.0,0.206234]
[1739288628438,3.72315287,97000.0,96983.0,0.156665]
[1739288628439,0.154655,96990.0,96983.0,0.156665]
[1739288629124,0.154655,96990.0,96983.0,0.002]
[1739288629561,0.154657,96989.0,96983.0,0.002]
[1739288629681,0.154657,96989.0,96983.0,0.004]
[1739288630128,0.154653,96992.0,96984.0,0.154663]
[1739288630597,0.154653,96991.0,96983.0,0.156665]
[1739288630730,0.154653,96991.0,96983.0,0.159665]
[1739288630928,3.57971097,97000.0,96984.0,0.206219]
[1739288631570,0.154642,96998.0,96986.0,0.154661]
[1739288631774,3.57971097,97000.0,96989.0,0.154656]
[1739288631978,0.15464,96999.0,96991.0,0.154652]
[1739288632180,3.57971097,97000.0,96983.0,0.10550365]
[1739288632358,3.57971097,97000.0,96984.0,0.64480365]
[1739288632563,3.57971097,97000.0,96993.0,0.154648]
[1739288632785,3.57971097,97000.0,96992.0,0.154651]
[1739288633029,3.73435097,97000.0,96985.0,0.5423]
[1739288633257,3.73435097,97000.0,96990.0,0.206206]
[1739288633518,3.57971097,97000.0,96986.0,0.64480365]
[1739288633837,3.58371097,97000.0,96993.0,0.154649]
[1739288634383,3.57971097,97000.0,96993.0,0.154649]
[1739288634588,3.58071097,97000.0,96993.0,0.154649]
[1739288634986,3.57971097,97000.0,96995.0,0.154646]
[1739288635259,3.58071097,97000.0,96987.0,0.5423]